bitfinex-derivatives/quotes_BTCF0:USTF0_20250905
["timestamp","ask_amount","ask_price","bid_price","bid_amount"]
[1757041004817,0.25826031,111450.0,111440.0,0.04113]
[1757041005521,0.27224031,111450.0,111440.0,0.04113]
[1757041007732,1.57871062,111450.0,111440.0,0.005]
[1757041007915,0.03586,111420.0,111410.0,0.05642821]
[1757041008122,0.27145031,111420.0,111410.0,0.48708096]
[1757041008323,0.03586,111420.0,111410.0,0.48708096]
[1757041009012,0.27145031,111420.0,111410.0,0.13708096]
[1757041009423,0.27145031,111420.0,111410.0,0.13808096]
[1757041009927,0.03586,111420.0,111410.0,0.13808096]
[1757041010222,0.27145031,111420.0,111410.0,0.04384821]
[1757041011327,0.03586,111420.0,111410.0,0.40484821]
[1757041011514,0.25757031,111430.0,111420.0,0.0131]
[1757041011722,0.02188,111430.0,111420.0,0.03536]
[1757041012628,0.03586,111430.0,111420.0,0.03536]
[1757041013017,0.27245031,111430.0,111420.0,0.02226]
[1757041015127,0.27245031,111430.0,111410.0,0.02058821]
[1757041015335,0.27145031,111420.0,111410.0,0.04284821]
[1757041016232,0.27145031,111420.0,111410.0,0.02226]
[1757041016433,0.27145031,111420.0,111410.0,0.02426]
[1757041016434,0.03586,111420.0,111410.0,0.02426]
[1757041021441,0.04476474,111420.0,111410.0,0.02426]
[1757041021941,0.28035505,111420.0,111410.0,0.02426]
[1757041022542,0.02188,111420.0,111410.0,0.39736]
[1757041024136,0.02188,111420.0,111410.0,0.03736]
[1757041024342,0.02188,111420.0,111410.0,0.36736]
[1757041025443,0.26638327,111430.0,111420.0,0.03536]
[1757041025744,0.26628327,111430.0,111420.0,0.03536]
[1757041026040,0.28026327,111430.0,111420.0,0.03536]
[1757041028844,0.04467296,111430.0,111420.0,0.03536]
[1757041029038,0.02188,111430.0,111420.0,0.40536]
[1757041029345,0.02198,111440.0,111430.0,0.03536]
[1757041029547,0.02188,111440.0,111430.0,0.37536]
[1757041029839,0.02188,111440.0,111430.0,0.62536]
[1757041031645,0.02288,111440.0,111430.0,0.28536]
[1757041032042,0.02288,111440.0,111430.0,0.64536]
[1757041032544,0.02388,111440.0,111430.0,0.28536]
[1757041032741,0.02388,111440.0,111430.0,0.60536]
[1757041033044,0.02388,111440.0,111430.0,0.28536]
[1757041033644,0.02388,111440.0,111430.0,0.66536]
[1757041035146,0.02388,111440.0,111430.0,0.28536]
[1757041035147,0.25947031,111440.0,111430.0,0.28536]
[1757041035351,0.27215031,111440.0,111430.0,0.02226]
[1757041039054,0.03489,111430.0,111420.0,0.10313275]
[1757041039252,0.27048031,111430.0,111420.0,0.10313275]
[1757041040240,0.27048031,111430.0,111420.0,0.02248]
[1757041040444,0.27048031,111430.0,111420.0,0.10313275]
[1757041041052,0.27048031,111430.0,111420.0,0.08065275]
[1757041041851,0.27048031,111430.0,111420.0,0.10313275]
[1757041042045,0.27048031,111430.0,111420.0,0.02248]
[1757041044554,0.03489,111430.0,111420.0,0.02248]
[1757041044756,0.27048031,111430.0,111420.0,0.02248]
[1757041045056,0.27048031,111430.0,111420.0,0.10313275]
[1757041046057,0.27048031,111430.0,111420.0,0.02248]
[1757041047254,0.27048031,111430.0,111420.0,0.10313275]
[1757041049958,0.27048031,111430.0,111420.0,0.08065275]
[1757041050157,0.03489,111420.0,111410.0,0.10313275]
[1757041050452,0.27048031,111420.0,111410.0,0.10313275]
[1757041051258,0.27048031,111420.0,111410.0,0.10413275]
[1757041051749,0.27048031,111420.0,111410.0,0.10513275]
[1757041052150,0.27048031,111420.0,111410.0,0.30513275]
[1757041052354,0.27048031,111420.0,111410.0,0.22448]
[1757041052550,0.27048031,111420.0,111410.0,0.30513275]
[1757041052857,0.27048031,111420.0,111410.0,0.31840275]
[1757041053151,0.02221,111420.0,111410.0,0.31840275]
[1757041053551,0.03489,111420.0,111410.0,0.10513275]
[1757041053758,0.27048031,111420.0,111410.0,0.10513275]
[1757041054960,0.27048031,111420.0,111410.0,0.28513275]
[1757041055759,0.27048031,111420.0,111410.0,0.20448]
[1757041061255,0.27048031,111420.0,111410.0,0.28513275]
[1757041061464,0.30006789,111420.0,111410.0,0.28513275]
[1757041066667,0.28738789,111420.0,111410.0,0.56304064]
[1757041066868,0.28738789,111420.0,111410.0,0.29786275]
[1757041067762,0.28738789,111420.0,111410.0,0.11786275]
[1757041067962,0.28738789,111420.0,111410.0,0.28786275]
[1757041068757,0.28738789,111420.0,111410.0,0.44786275]
[1757041071472,0.28738789,111420.0,111410.0,0.71304064]
[1757041071663,0.28738789,111420.0,111410.0,0.44786275]
[1757041071863,0.28738789,111420.0,111410.0,0.36721]
[1757041074677,0.26527789,111430.0,111410.0,0.63238789]
[1757041074866,0.28791789,111430.0,111420.0,0.38099337]
[1757041075168,0.28781789,111430.0,111420.0,0.11581548]
[1757041080073,0.02264,111430.0,111420.0,0.71581548]
[1757041080280,0.28781789,111430.0,111420.0,0.71581548]
[1757041080477,0.28781789,111430.0,111420.0,0.46581548]
[1757041081880,0.02264,111430.0,111420.0,0.46581548]
[1757041082073,0.28781789,111430.0,111420.0,0.46581548]
[1757041082578,0.30160789,111430.0,111420.0,0.45308548]
[1757041086978,0.30160789,111430.0,111420.0,0.37233]
[1757041088078,0.30160789,111430.0,111420.0,0.38506]
[1757041088388,0.30160789,111430.0,111420.0,0.37233]
[1757041091493,0.56678578,111430.0,111420.0,0.16233]
[1757041091795,0.56678578,111430.0,111420.0,0.14]
[1757041092194,0.56678578,111430.0,111420.0,0.16233]
[1757041093299,0.30160789,111430.0,111420.0,0.16233]
[1757041100095,0.03643,111430.0,111420.0,0.16233]
[1757041100397,0.30160789,111430.0,111420.0,0.24308548]
[1757041107896,0.30160789,111430.0,111420.0,0.16233]
[1757041110600,0.56678578,111430.0,111420.0,0.16233]
[1757041110901,0.56678578,111430.0,111420.0,0.14]
[1757041111403,0.56678578,111430.0,111420.0,0.16321]
[1757041111900,0.56678578,111430.0,111420.0,0.24396548]
[1757041114605,0.56678578,111430.0,111420.0,0.16321]
[1757041114998,0.56678578,111430.0,111420.0,0.14]
[1757041115198,0.56678578,111430.0,111420.0,0.16321]
[1757041122410,0.30160789,111430.0,111420.0,0.02321]
[1757041122612,1.12156789,111430.0,111420.0,0.02321]
[1757041123411,1.09209192,111430.0,111420.0,0.02321]
[1757041128815,0.27213192,111430.0,111420.0,0.02321]
[1757041129013,0.25834192,111430.0,111420.0,0.11782548]
[1757041132719,0.27137192,111430.0,111420.0,0.11782548]
[1757041135714,0.25834192,111430.0,111420.0,0.28782548]
[1757041136818,0.27137192,111430.0,111420.0,0.27396548]
[1757041137122,0.27137192,111430.0,111420.0,0.19321]
[1757041137914,0.29336839,111430.0,111420.0,0.17]
[1757041139214,0.29336839,111430.0,111420.0,0.19206]
[1757041141319,0.29336839,111430.0,111420.0,0.17]
[1757041142120,0.54336839,111430.0,111420.0,0.17]
[1757041142720,0.54336839,111430.0,111420.0,0.19206]
[1757041142912,0.52137192,111430.0,111420.0,0.19206]
[1757041143114,0.54336577,111430.0,111420.0,0.19206]
[1757041144223,0.52137192,111430.0,111420.0,0.19206]
[1757041144922,0.54336577,111430.0,111420.0,0.19206]
[1757041145812,0.54336577,111430.0,111420.0,0.17]
[1757041146016,0.03569,111420.0,111410.0,0.02206]
[1757041146216,1.09115192,111420.0,111410.0,0.02206]
[1757041147615,1.09115192,111420.0,111410.0,0.02406]
[1757041150525,1.09115192,111420.0,111410.0,0.002]
[1757041150722,1.09115192,111420.0,111410.0,0.02406]
[1757041151126,0.85545,111420.0,111410.0,0.02406]
[1757041151424,1.09115192,111420.0,111410.0,0.02406]
[1757041154727,1.09115192,111420.0,111410.0,0.002]
[1757041154928,1.09115192,111420.0,111410.0,0.02406]
[1757041156034,1.09107192,111420.0,111410.0,0.02406]
[1757041156232,0.03569,111420.0,111410.0,0.02406]
[1757041156425,0.50343192,111420.0,111410.0,0.02406]
[1757041157729,0.50343192,111420.0,111410.0,0.10481548]
[1757041159927,0.50343192,111420.0,111410.0,0.02406]
[1757041160320,0.50343192,111420.0,111410.0,0.10481548]
[1757041170834,0.27139192,111420.0,111410.0,0.10481548]
[1757041175842,0.27139192,111420.0,111410.0,0.08275548]
[1757041176345,0.27139192,111420.0,111410.0,0.10409548]
[1757041177545,0.27139192,111420.0,111410.0,0.08275548]
[1757041178047,0.52139192,111420.0,111410.0,0.08275548]
[1757041178239,0.52139192,111420.0,111410.0,0.002]
[1757041178544,1.34087192,111420.0,111410.0,0.002]
[1757041179145,1.34187192,111420.0,111410.0,0.001]
[1757041180338,0.0357,111410.0,111400.0,0.02134]
[1757041180540,0.27140192,111410.0,111400.0,0.02134]
[1757041183346,0.0357,111400.0,111390.0,0.02134]
[1757041183547,0.27140192,111400.0,111390.0,0.02134]
[1757041184348,0.2804229,111400.0,111390.0,0.02134]
[1757041184552,0.2804229,111400.0,111390.0,0.02234]
[1757041184746,0.2804229,111400.0,111390.0,0.02334]
[1757041185452,0.30999581,111400.0,111390.0,0.02334]
[1757041185945,0.30097483,111400.0,111390.0,0.36334]
[1757041186146,0.30097483,111400.0,111390.0,0.37635]
[1757041186349,0.28741483,111400.0,111390.0,0.89162483]
[1757041188344,0.28741483,111400.0,111390.0,0.62635]
[1757041188646,0.28741483,111400.0,111390.0,0.89162483]
[1757041188848,0.28741483,111400.0,111390.0,0.86162483]
[1757041190962,0.28741483,111400.0,111390.0,0.94238031]
[1757041195572,0.28741483,111400.0,111390.0,0.96238031]
[1757041196174,0.28741483,111400.0,111390.0,0.63238031]
[1757041196369,0.28741483,111400.0,111390.0,0.95238031]
[1757041196875,0.28741483,111400.0,111390.0,0.36710548]
[1757041197176,0.28741483,111400.0,111390.0,0.63238031]
[1757041197577,0.28741483,111400.0,111390.0,0.96238031]
[1757041197774,0.28741483,111400.0,111390.0,0.63238031]
[1757041198272,0.28741483,111400.0,111390.0,0.94238031]
[1757041198672,0.28741483,111400.0,111390.0,0.63238031]
[1757041198978,0.28741483,111400.0,111390.0,0.94238031]
[1757041199372,0.28741483,111400.0,111390.0,0.63238031]
[1757041199675,0.28741483,111400.0,111390.0,0.97238031]
[1757041200172,0.28741483,111400.0,111390.0,0.38238031]
[1757041200372,0.30025483,111400.0,111390.0,0.36937031]
[1757041200880,0.30025483,111400.0,111390.0,0.11710548]
[1757041201073,0.30025483,111400.0,111390.0,0.46710548]
[1757041201276,0.30025483,111400.0,111390.0,0.23409548]
[1757041202370,0.30025483,111400.0,111390.0,0.02334]
[1757041204180,0.30025483,111400.0,111390.0,0.03635]
[1757041206876,0.30025483,111400.0,111390.0,0.02334]
[1757041212191,0.30025483,111400.0,111390.0,0.10409548]
[1757041213389,0.30025483,111400.0,111390.0,0.02334]
[1757041213883,0.30025483,111400.0,111390.0,0.10407765]
[1757041215388,0.30025483,111400.0,111390.0,0.11407765]
[1757041216282,0.30025483,111400.0,111390.0,0.02334]
[1757041216482,0.30025483,111400.0,111390.0,0.10408451]
[1757041217787,0.30025483,111400.0,111390.0,0.02334]
[1757041219292,0.30025483,111400.0,111390.0,0.03334]
[1757041220190,0.30025483,111400.0,111390.0,0.012]
[1757041220490,0.30025483,111400.0,111390.0,0.09274451]
[1757041221088,0.30025483,111400.0,111390.0,0.08274451]
[1757041221089,0.56552966,111400.0,111390.0,0.08274451]
[1757041221392,0.81552966,111400.0,111390.0,0.002]
[1757041222490,1.63556966,111400.0,111390.0,0.001]
[1757041222693,0.03546,111390.0,111380.0,0.02311]
[1757041222891,0.56600966,111390.0,111380.0,0.02311]
[1757041223093,0.30073483,111390.0,111380.0,0.02311]
[1757041223405,0.30073483,111390.0,111380.0,0.11687451]
[1757041224492,0.30073483,111390.0,111380.0,0.03613]
[1757041228499,0.30073483,111390.0,111380.0,0.02311]
[1757041229501,0.56600966,111390.0,111380.0,0.02311]
[1757041231701,0.03546,111390.0,111380.0,0.02311]
[1757041231890,0.56600966,111390.0,111380.0,0.02311]
[1757041232096,0.03546,111380.0,111370.0,0.12495266]
[1757041232296,0.30073483,111380.0,111370.0,0.08420815]
[1757041232502,0.03546,111380.0,111370.0,0.02311]
[1757041232698,0.30073483,111380.0,111360.0,0.08074451]
[1757041233005,0.30073483,111370.0,111360.0,0.27311]
[1757041234003,0.3098864,111370.0,111360.0,0.27311]
[1757041234694,0.3088864,111370.0,111360.0,0.27311]
[1757041235298,0.3088864,111370.0,111360.0,0.27511]
[1757041235790,0.3078864,111370.0,111360.0,0.27511]
[1757041236204,0.29873483,111370.0,111360.0,0.28813]
[1757041236603,0.30073483,111370.0,111360.0,0.28913]
[1757041237197,0.30982983,111370.0,111360.0,0.28913]
[1757041237392,0.30073483,111370.0,111360.0,0.28913]
[1757041238299,0.3097272,111370.0,111360.0,0.28913]
[1757041238906,0.04445237,111370.0,111360.0,0.28913]
[1757041239310,0.3097272,111370.0,111360.0,0.28913]
[1757041240806,0.3097272,111370.0,111360.0,0.36987451]
[1757041241408,0.30073483,111370.0,111360.0,0.36987451]
[1757041243714,0.30073483,111370.0,111360.0,0.35685451]
[1757041244804,0.03546,111370.0,111360.0,0.35685451]
[1757041245006,0.30073483,111370.0,111360.0,0.35685451]
[1757041245204,0.30985694,111370.0,111360.0,0.35685451]
[1757041245602,0.28050183,111370.0,111360.0,0.35685451]
[1757041246113,0.28050183,111370.0,111360.0,0.37063451]
[1757041246314,0.27137972,111370.0,111360.0,0.37063451]
[1757041248513,0.27137972,111370.0,111360.0,0.28989]
[1757041248914,0.28032018,111370.0,111360.0,0.28989]
[1757041249413,0.28032018,111370.0,111360.0,0.40279175]
[1757041249604,0.27137972,111370.0,111360.0,0.40279175]
[1757041251814,0.28028417,111370.0,111360.0,0.40279175]
[1757041252014,0.27137972,111370.0,111360.0,0.40279175]
[1757041253310,0.27137972,111370.0,111360.0,0.38901175]
[1757041253519,0.28058305,111370.0,111360.0,0.38901175]
[1757041254323,0.02121,111380.0,111370.0,0.035]
[1757041254616,0.27098972,111380.0,111370.0,0.11577558]
[1757041255715,0.27098972,111380.0,111370.0,0.11677558]
[1757041257320,0.27098972,111380.0,111370.0,0.44677558]
[1757041257615,0.2800004,111380.0,111370.0,0.11677558]
[1757041259512,0.02111,111380.0,111370.0,1.022479]
[1757041259715,0.02121,111390.0,111380.0,0.035]
[1757041260018,0.02111,111390.0,111380.0,0.365]
[1757041260215,0.02111,111390.0,111380.0,0.44580632]
[1757041260417,0.02111,111390.0,111380.0,0.11580632]
[1757041260718,0.02111,111390.0,111380.0,0.46580632]
[1757041260924,0.26634836,111400.0,111390.0,0.035]
[1757041261118,0.26624836,111400.0,111390.0,0.365]
[1757041261717,0.26624836,111400.0,111390.0,0.035]
[1757041262013,0.03032864,111400.0,111390.0,0.055]
[1757041262214,0.03032864,111400.0,111390.0,0.385]
[1757041262716,0.03232864,111400.0,111390.0,0.035]
[1757041263115,0.28420836,111400.0,111390.0,0.035]
[1757041270827,0.04828864,111400.0,111390.0,0.405]
[1757041271027,0.27024836,111400.0,111390.0,0.035]
[1757041271326,0.28420836,111400.0,111390.0,0.035]
[1757041272125,0.28420836,111400.0,111390.0,0.02122]
[1757041273128,0.28420836,111400.0,111390.0,0.035]
[1757041273923,0.04828864,111400.0,111390.0,0.035]
[1757041274226,0.28420836,111400.0,111390.0,0.035]
[1757041279732,0.28420836,111400.0,111390.0,0.395]
[1757041280233,0.28420836,111400.0,111390.0,0.035]
[1757041280833,0.28420836,111400.0,111390.0,0.02122]
[1757041281832,0.04828864,111400.0,111390.0,0.02122]
[1757041282128,0.28420836,111400.0,111390.0,0.02122]
[1757041282928,0.03591,111390.0,111380.0,0.10362632]
[1757041283127,0.27182972,111390.0,111380.0,0.08080632]
[1757041283329,0.27182972,111390.0,111370.0,0.16560632]
[1757041283532,0.27182972,111380.0,111370.0,0.18842632]
[1757041284328,0.03591,111380.0,111370.0,0.18842632]
[1757041284532,0.27182972,111380.0,111370.0,0.10362632]
[1757041285435,0.27182972,111380.0,111370.0,0.10462632]
[1757041286628,0.03591,111380.0,111370.0,0.10462632]
[1757041286939,0.27182972,111380.0,111370.0,0.10462632]
[1757041287130,0.27182972,111380.0,111370.0,0.02382]
[1757041287834,0.27182972,111380.0,111370.0,0.10462632]
[1757041289236,0.03591,111380.0,111370.0,0.10462632]
[1757041289437,0.27182972,111380.0,111370.0,0.10462632]
[1757041292037,0.03591,111380.0,111370.0,0.10462632]
[1757041292240,0.27182972,111380.0,111370.0,0.10462632]
[1757041293635,0.27182972,111380.0,111370.0,0.02382]
[1757041293836,0.27182972,111380.0,111370.0,0.001]
[1757041294840,0.27182972,111380.0,111370.0,0.02382]
[1757041295242,0.27182972,111380.0,111370.0,0.001]
[1757041295443,0.27182972,111380.0,111370.0,0.00548]
[1757041296538,0.28591,111380.0,111370.0,0.00548]
[1757041296843,0.52182972,111380.0,111370.0,0.00548]
[1757041297243,0.52182972,111380.0,111370.0,0.0283]
[1757041299249,0.27182972,111380.0,111370.0,0.0283]
[1757041301547,0.27182972,111380.0,111370.0,0.00548]
[1757041301733,0.27182972,111380.0,111370.0,0.0283]
[1757041304245,0.03591,111380.0,111370.0,0.4083]
[1757041304450,0.27182972,111380.0,111370.0,0.38132]
[1757041305249,0.27182972,111380.0,111370.0,0.06132]
[1757041306050,0.27182972,111380.0,111370.0,0.04132]
[1757041306248,0.02316,111380.0,111370.0,0.39132]
[1757041306446,0.0001,111390.0,111380.0,0.01276]
[1757041306642,0.02264,111390.0,111380.0,0.38456]
[1757041307345,0.02264,111390.0,111380.0,0.28456]
[1757041307550,0.28795005,111390.0,111380.0,0.66456]
[1757041307745,0.30135005,111390.0,111380.0,0.28456]
[1757041307948,0.30235005,111390.0,111380.0,0.28456]
[1757041308546,0.30235005,111390.0,111380.0,0.63456]
[1757041308744,0.30335005,111390.0,111380.0,0.63456]
[1757041308945,0.30335005,111390.0,111380.0,0.28456]
[1757041309253,0.5686601,111390.0,111380.0,0.0218]
[1757041309455,0.03604,111380.0,111370.0,0.10708632]
[1757041309749,0.30135005,111380.0,111370.0,0.10708632]
[1757041309955,0.30135005,111380.0,111370.0,0.02628]
[1757041310848,0.30135005,111380.0,111370.0,0.35628]
[1757041311052,0.30135005,111380.0,111370.0,0.35728]
[1757041311247,0.30135005,111380.0,111370.0,0.02728]
[1757041311453,0.30135005,111380.0,111370.0,0.40728]
[1757041312154,0.30135005,111380.0,111370.0,0.48802208]
[1757041312354,0.30135005,111380.0,111370.0,0.12802208]
[1757041312554,0.30135005,111380.0,111370.0,0.10802208]
[1757041318657,0.30135005,111380.0,111370.0,0.08622208]
[1757041318859,0.30135005,111380.0,111370.0,0.00548]
[1757041319061,0.55135005,111380.0,111370.0,0.00548]
[1757041320653,0.55135005,111380.0,111370.0,0.02728]
[1757041320854,0.55135005,111380.0,111370.0,0.00548]
[1757041321361,0.30135005,111380.0,111370.0,0.00548]
[1757041327464,0.55135005,111380.0,111370.0,0.00548]
[1757041328471,0.55235005,111380.0,111370.0,0.00548]
[1757041329964,0.55235005,111380.0,111370.0,0.00448]
[1757041330166,0.55335005,111380.0,111370.0,0.00448]
[1757041330565,1.37303005,111380.0,111370.0,0.00448]
[1757041334568,0.55335005,111380.0,111370.0,0.00448]
[1757041334771,1.37379005,111380.0,111370.0,0.00448]
[1757041335371,0.03395,111360.0,111350.0,0.08074208]
[1757041335557,1.3850101,111360.0,111350.0,0.11]
[1757041335763,0.5645701,111360.0,111350.0,0.1313]
[1757041336668,0.5645701,111360.0,111350.0,0.2723]
[1757041336870,0.28660005,111360.0,111350.0,0.39575]
[1757041337072,0.28660005,111360.0,111350.0,0.60575]
[1757041337369,0.28660005,111360.0,111350.0,0.41575]
[1757041337572,0.02129,111360.0,111350.0,0.64575]
[1757041337774,0.28660005,111360.0,111350.0,0.64575]
[1757041338075,0.29926005,111360.0,111350.0,0.60675]
[1757041338374,0.29926005,111360.0,111350.0,0.65675]
[1757041338773,0.29926005,111360.0,111350.0,0.41675]
[1757041338974,0.29926005,111360.0,111350.0,0.61675]
[1757041339175,0.29926005,111360.0,111350.0,0.40675]
[1757041339366,0.29926005,111360.0,111350.0,0.28675]
[1757041339767,0.29926005,111360.0,111350.0,0.66675]
[1757041339967,0.29926005,111360.0,111350.0,0.28675]
[1757041340173,0.29926005,111360.0,111350.0,0.61675]
[1757041340365,0.29926005,111360.0,111350.0,0.28675]
[1757041340571,0.5645701,111360.0,111350.0,0.59675]
[1757041341383,0.5645701,111360.0,111350.0,0.40675]
[1757041342674,0.5645701,111360.0,111350.0,0.3933]
[1757041342974,0.5645701,111360.0,111350.0,0.5833]
[1757041343283,0.5645701,111360.0,111350.0,0.3633]
[1757041345073,0.5645701,111360.0,111350.0,0.61675]
[1757041345468,0.5645701,111360.0,111350.0,0.6433]
[1757041345875,0.5645701,111360.0,111350.0,0.3533]
[1757041348383,0.02129,111360.0,111350.0,0.65675]
[1757041348580,0.5519101,111360.0,111350.0,0.36675]
[1757041349685,0.5645701,111360.0,111350.0,0.28675]
[1757041349985,0.5645701,111360.0,111350.0,0.36675]
[1757041350184,0.5645701,111360.0,111350.0,0.28675]
[1757041350383,0.5645701,111360.0,111350.0,0.64675]
[1757041350585,0.29926005,111360.0,111350.0,0.35675]
[1757041350779,0.29926005,111360.0,111350.0,0.62675]
[1757041350986,0.29926005,111360.0,111350.0,0.37675]
[1757041351185,0.29926005,111360.0,111350.0,0.60675]
[1757041351986,0.29926005,111360.0,111350.0,0.65675]
[1757041352585,0.5645701,111360.0,111350.0,0.36675]
[1757041352791,0.5645701,111360.0,111350.0,0.65675]
[1757041353988,0.5645701,111360.0,111350.0,0.28675]
[1757041354184,0.5645701,111360.0,111350.0,0.60675]
[1757041354486,0.5645701,111360.0,111350.0,0.61675]
[1757041355187,0.5645701,111360.0,111350.0,0.60675]
[1757041355790,0.02129,111360.0,111350.0,0.60675]
[1757041355979,0.28660005,111360.0,111350.0,0.60675]
[1757041357374,0.28660005,111360.0,111350.0,0.39675]
[1757041357577,0.28660005,111360.0,111350.0,0.60675]
[1757041357780,0.28660005,111360.0,111350.0,0.41675]
[1757041357983,0.28660005,111360.0,111350.0,0.42675]
[1757041358184,0.28660005,111360.0,111350.0,0.66675]
[1757041358382,0.28660005,111360.0,111350.0,0.40675]
[1757041358585,0.28660005,111360.0,111350.0,0.61675]
[1757041360489,0.28660005,111360.0,111350.0,0.42675]
[1757041360783,0.28660005,111360.0,111350.0,0.40675]
[1757041361089,0.28660005,111360.0,111350.0,0.42675]
[1757041361290,0.28660005,111360.0,111350.0,0.60675]
[1757041361692,0.5645701,111360.0,111350.0,0.4033]
[1757041361878,1.6344501,111360.0,111350.0,0.002]
[1757041362988,1.6354501,111360.0,111350.0,0.001]
[1757041363177,1.6364501,111360.0,111330.0,0.08074208]
[1757041363384,0.29926005,111340.0,111330.0,0.16204208]
[1757041364194,0.30841372,111340.0,111330.0,0.16204208]
[1757041364388,0.30841372,111340.0,111330.0,0.16304208]
[1757041364694,0.30841372,111340.0,111330.0,0.16404208]
[1757041366295,0.30841372,111340.0,111330.0,0.16304208]
[1757041366485,0.04310367,111340.0,111330.0,0.16404208]
[1757041366687,0.30841372,111340.0,111330.0,0.16404208]
[1757041367486,0.27916378,111340.0,111330.0,0.16404208]
[1757041368297,0.27916378,111340.0,111330.0,0.0233]
[1757041373899,0.27916378,111340.0,111330.0,0.002]
[1757041374702,1.09880378,111340.0,111330.0,0.002]
[1757041377412,1.34880378,111340.0,111330.0,0.002]
[1757041380518,1.34924378,111340.0,111330.0,0.002]
[1757041381217,1.09924378,111340.0,111330.0,0.002]
[1757041382218,0.27916378,111340.0,111330.0,0.002]
[1757041382421,1.09920378,111340.0,111330.0,0.002]
[1757041384325,0.86314367,111340.0,111330.0,0.002]
[1757041384627,1.09920378,111340.0,111330.0,0.002]
[1757041384815,1.09932378,111340.0,111330.0,0.002]
[1757041386911,1.34932378,111340.0,111330.0,0.002]
[1757041387116,0.03601,111310.0,111300.0,0.11602208]
[1757041387316,0.27207011,111310.0,111300.0,0.43602208]
[1757041387618,0.03601,111310.0,111300.0,0.43602208]
[1757041387818,0.23606011,111310.0,111300.0,0.40074208]
[1757041388124,0.27207011,111310.0,111300.0,0.42257208]
[1757041388312,0.27207011,111310.0,111300.0,0.34183]
[1757041388517,0.03601,111310.0,111300.0,0.34183]
[1757041388826,0.03601,111310.0,111300.0,0.34483]
[1757041389212,0.03601,111310.0,111300.0,0.34883]
[1757041390227,0.03601,111310.0,111300.0,0.34183]
[1757041390417,0.03601,111310.0,111300.0,0.34483]
[1757041391425,1.06938011,111320.0,111300.0,0.323]
[1757041391426,1.05624011,111320.0,111300.0,0.323]
[1757041393325,0.82018,111320.0,111300.0,0.323]
[1757041393627,1.05624011,111320.0,111300.0,0.323]
[1757041394728,0.82018,111320.0,111300.0,0.323]
[1757041394930,1.05624011,111320.0,111300.0,0.323]
[1757041395326,1.05624011,111320.0,111300.0,0.083]
[1757041395627,0.23606011,111310.0,111300.0,0.083]
[1757041398922,0.23606011,111310.0,111300.0,0.003]
[1757041399125,0.23606011,111310.0,111300.0,0.00749]
[1757041399322,1.05624011,111320.0,111300.0,0.00749]
[1757041399525,0.23606011,111310.0,111300.0,0.00749]
[1757041400032,0.23606011,111310.0,111300.0,0.00649]
[1757041400331,0.23606011,111310.0,111300.0,0.00549]
[1757041402934,1.07218011,111310.0,111300.0,0.00549]
[1757041404434,0.23606011,111310.0,111300.0,0.00549]
[1757041404733,0.77092,111310.0,111300.0,0.59549]
[1757041404921,0.77092,111310.0,111300.0,0.25549]
[1757041405433,0.23616011,111320.0,111300.0,0.25549]
[1757041405631,0.81204011,111320.0,111300.0,0.32549]
[1757041405831,0.0001,111320.0,111300.0,0.56155011]
[1757041406436,0.0001,111320.0,111300.0,0.32549]
[1757041406641,0.0001,111320.0,111300.0,0.00549]
[1757041406828,0.23616011,111320.0,111300.0,0.00549]
[1757041407028,0.81664011,111320.0,111300.0,0.00549]
[1757041407436,0.23606011,111310.0,111300.0,0.00549]
[1757041408338,0.58058,111320.0,111300.0,0.00549]
[1757041408539,0.23606011,111310.0,111300.0,0.00549]
[1757041408738,0.88721887,111320.0,111300.0,0.00549]
[1757041409337,0.88721887,111320.0,111300.0,0.00449]
[1757041409536,0.88721887,111320.0,111300.0,0.00549]
[1757041410942,0.23606011,111310.0,111300.0,0.00549]
[1757041411945,0.23606011,111310.0,111300.0,0.00449]
[1757041412146,0.23606011,111310.0,111300.0,0.00549]
[1757041412444,0.88721887,111320.0,111300.0,0.00549]
[1757041412947,0.90535876,111320.0,111300.0,0.00549]
[1757041413248,1.14141887,111320.0,111300.0,0.00549]
[1757041413438,0.30673887,111320.0,111300.0,0.35549]
[1757041413634,0.30673887,111320.0,111300.0,0.32549]
[1757041414441,0.30673887,111320.0,111300.0,0.00449]
[1757041414746,0.30673887,111320.0,111300.0,0.00549]
[1757041415440,0.30673887,111320.0,111300.0,0.38549]
[1757041416235,0.30673887,111320.0,111300.0,0.00549]
[1757041416440,0.30673887,111320.0,111300.0,0.34549]
[1757041416743,0.0001,111320.0,111300.0,0.24155011]
[1757041416949,0.0001,111320.0,111300.0,0.56155011]
[1757041418046,0.0001,111320.0,111300.0,0.32549]
[1757041418951,0.0001,111320.0,111300.0,0.6653296]
[1757041419149,0.0001,111320.0,111310.0,0.23606011]
[1757041419337,0.0001,111330.0,111310.0,0.81606011]
[1757041419542,0.0001,111330.0,111310.0,0.56606011]
[1757041419846,0.0001,111330.0,111310.0,0.90589151]
[1757041420049,0.0001,111330.0,111320.0,0.23606011]
[1757041420252,0.00912634,111340.0,111320.0,0.54606011]
[1757041420442,0.0001,111340.0,111320.0,0.31]
[1757041420642,0.0001,111340.0,111320.0,0.54606011]
[1757041420845,0.0001,111340.0,111320.0,0.62680219]
[1757041421045,0.001,111330.0,111320.0,0.62680219]
[1757041421442,0.002,111330.0,111320.0,0.62680219]
[1757041421841,0.001,111330.0,111320.0,0.62680219]
[1757041422042,0.001,111330.0,111320.0,0.63129219]
[1757041422551,0.003,111330.0,111320.0,0.63129219]
[1757041422746,0.002,111330.0,111320.0,0.63129219]
[1757041423647,0.003,111330.0,111320.0,0.63129219]
[1757041423956,0.003,111330.0,111320.0,0.09523208]
[1757041424139,0.48906011,111330.0,111320.0,0.01449]
[1757041424344,0.23906011,111330.0,111320.0,0.01449]
[1757041425252,0.48906011,111330.0,111320.0,0.01449]
[1757041426456,0.48906011,111330.0,111320.0,0.00449]
[1757041429555,0.7843535,111330.0,111320.0,0.00449]
[1757041432853,0.26867675,111330.0,111320.0,0.00449]
[1757041434359,0.5343535,111330.0,111320.0,0.00449]
[1757041435757,0.26867675,111330.0,111320.0,0.00449]
[1757041438960,0.5343535,111330.0,111320.0,0.00449]
[1757041443862,0.26867675,111330.0,111320.0,0.00449]
[1757041444064,0.003,111330.0,111320.0,0.52016675]
[1757041444267,0.26867675,111330.0,111320.0,0.52016675]